Cogmind - Beta 16 @@@ ROGUE MODE // 2026.01.20 @ 21:59:01 Player: shapeshifter Result: Destroyed by B-75 Beast with Magnetic Acceleration Cannon Performance ------------- Evolutions (3) 1500 Regions Visited (9) 1800 Robots Destroyed (108) 540 Value Destroyed (3636) 3636 Prototype IDs (220) 4400 Alien Tech Used (0) 0 Bonus (3345) 3345 TOTAL SCORE: 15221 Bonus ------- High Alert Combat Kills 45 Met Data Miner 300 Used Data Conduit 3000 Cogmind --------- Core Integrity 0/700 Matter 300/300 Energy 323/325 System Corruption 0% Temperature Cool (0) Movement Rolling (110) Ox2 Location -6/Proximity Caves Parts ------- > --- POWER (1) -------- Antimatter Reactor > --- PROPULSION (3) --- Enhanced Flexi-carbon Leg Wheel Compact Wheel > --- UTILITY (6) ------ Advanced Heat Sink Large Storage Unit Experimental Thermal Shield > --- WEAPON (3) ------- Plasma Cannon Neutron Cannon > --- INVENTORY (15) --- Enhanced Flexi-carbon Leg Advanced Heat Sink Advanced Heat Sink Advanced Heat Sink Advanced Energy Well (500) Advanced Energy Well (500) Weapon Cycler Stasis Canceller Improved Utility Shielding Deep Network Scanner Quantum Router Heavy Rocket Launcher Remote Datajack Plasma Cutter Peak State ------------ > --- POWER ------------ Antimatter Reactor > --- PROPULSION ------- Enhanced Flexi-carbon Leg Enhanced Flexi-carbon Leg Enhanced Flexi-carbon Leg > --- UTILITY ---------- Advanced Heat Sink Advanced Heat Sink Large Storage Unit Advanced Particle Charger Layered Medium Armor Plating Experimental Thermal Shield > --- WEAPON ----------- Plasma Cannon Neutron Cannon Neutron Cannon > --- INVENTORY -------- Antimatter Reactor Advanced Heat Sink Advanced Heat Sink Advanced Heat Sink Huge Storage Unit Advanced Energy Well Advanced Energy Well Weapon Cycler Improved Utility Shielding Deep Network Scanner Quantum Router Component Analysis Suite Heavy Rocket Launcher Remote Datajack Plasma Cutter [Rating: 86] Favorites ----------- Power Light Deuterium Engine Engine Light Deuterium Engine Power Core Nuclear Core Reactor Antimatter Reactor Propulsion Wheel Treads Light Treads Leg Enhanced Flexi-carbon Leg Wheel Wheel Utility Hacking Suite Device Improved Heat Sink Storage Large Storage Unit Processor Improved Signal Interpreter Hackware Hacking Suite Protection Improved Medium Armor Plating Weapon Precision Beam Rifle Energy Gun Precision Beam Rifle Energy Cannon Neutron Cannon Ballistic Gun Light Assault Rifle Special Weapon Remote Datajack Slashing Weapon Makeshift Sword Build | -11 -10 -10 -10 -8 -7 -7 -7 -7 -6 ------- Run | Yrd Mat Min Sub Mat Fac Low Low Dat Pro Slots Evolved 6 | . . . . 4 2 . . . . Power . | . . . . . . . . . . Propulsion 1 | . . . . 1 . . . . . Utility 4 | . . . . 3 1 . . . . Weapon 1 | . . . . . 1 . . . . Parts Attached 84 | 7 4 1 7 26 13 . 3 21 2 Power 12 | 1 1 . 2 4 1 . 1 1 1 Engine 7 | 1 1 . 2 3 . . . . . Core 3 | . . . . 1 1 . 1 . . Reactor 2 | . . . . . . . . 1 1 Propulsion 20 | 2 . 1 2 7 2 . 2 4 . Treads 5 | 2 . . . 3 . . . . . Leg 4 | . . . . . . . . 4 . Wheel 11 | . . 1 2 4 2 . 2 . . Hover . | . . . . . . . . . . Flight . | . . . . . . . . . . Utility 34 | 2 2 . 1 10 7 . . 11 1 Device 15 | 1 1 . . 3 3 . . 6 1 Storage 5 | 1 1 . . 2 . . . 1 . Processor 2 | . . . . . 2 . . . . Hackware 2 | . . . . 2 . . . . . Protection 10 | . . . 1 3 2 . . 4 . Artifact . | . . . . . . . . . . Weapon 18 | 2 1 . 2 5 3 . . 5 . Energy Gun 4 | . . . . 2 2 . . . . Energy Cannon 3 | . . . . . 1 . . 2 . Ballistic Gun 8 | 2 1 . 2 3 . . . . . Ballistic Cannon . | . . . . . . . . . . Launcher . | . . . . . . . . . . Special Weapon 1 | . . . . . . . . 1 . Impact Weapon . | . . . . . . . . . . Slashing Weapon 2 | . . . . . . . . 2 . Piercing Weapon . | . . . . . . . . . . Special Melee Weapon . | . . . . . . . . . . Unidentified Prototypes 2 | . . . . 2 . . . . . Parts Lost 33 | . 1 2 4 6 1 . 2 10 7 Power 5 | . . . 2 1 . . . 1 1 Propulsion 8 | . . 1 1 2 . . 1 2 1 Utility 16 | . . 1 . 3 1 . 1 6 4 Weapon 4 | . 1 . 1 . . . . 1 1 Highest Loss Streak 8 | . 1 2 2 3 1 . 2 8 2 To Critical Strikes . | . . . . . . . . . . Average Backups 13 | 4 8 8 4 14 19 14 14 14 13 Power . | . 1 1 . . 1 1 1 1 . Propulsion 3 | 1 2 1 . 5 6 2 . . 1 Utility 4 | 1 2 2 1 1 5 7 6 7 8 Weapon 3 | . 2 2 1 4 4 2 3 4 1 Tool/Special . | . . . . . . . . . . Unused Backups 37 | . 1 . 1 5 20 . . 1 9 Power 1 | . . . . 1 . . . . . Propulsion 11 | . . . . . 11 . . . . Utility 10 | . 1 . 1 . . . . 1 7 Weapon 12 | . . . . 3 8 . . . 1 Tool/Special 3 | . . . . 1 1 . . . 1 Average Slot Usage (%) 91 | . 100 73 81 86 99 100 99 86 93 Engine 5 | . 14 14 12 5 6 . . . . Core 2 | . . . . 2 . 7 7 3 . Treads 6 | . 28 14 2 3 5 . . . . Leg 2 | . . . . . . . . 9 16 Wheel 14 | . . 1 24 19 17 23 23 11 5 Device 11 | . 14 . . 10 12 15 9 12 24 Storage 8 | . 14 14 3 8 7 7 7 7 7 Processor 1 | . . . . . . 7 7 4 . Hackware 6 | . . . . 9 14 7 7 2 . Protection 7 | . . . 9 7 8 7 11 13 10 Energy Gun 10 | . . . . 12 22 23 23 . . Energy Cannon 1 | . . . . . . . . 4 19 Ballistic Gun 8 | . 28 28 28 5 . . . . . Slashing Weapon 1 | . . . . . . . . 11 . Peak Build Rating 86 | 7 9 7 11 36 43 40 40 86 85 Average Rating 32 | 5 7 5 9 29 41 40 39 49 72 On Entrance 27 | . 7 7 6 11 35 40 40 40 85 Avg Prop Armor Cover (%) 7 | . . 5 . 9 7 . . . 5 Naked Turns . | . . . . . . . . . . Heaviest Build 101 | 14 19 17 25 95 101 41 48 78 78 Greatest Support 84 | 40 40 40 30 46 30 30 36 84 84 Greatest Overweight (x) 9 | . . . 1 9 5 1 1 1 4 Average Overweight (x) 1 | . . . . 1 3 1 1 . 1 Largest Inventory Capacity 25 | 8 10 10 10 25 25 15 15 15 15 Average Capacity 15 | 7 9 10 6 18 22 15 15 15 15 Most Carried 25 | 8 9 9 8 25 25 15 15 15 15 Average Carried 13 | 4 8 8 4 14 19 14 14 14 13 Final Capacity 25 | 8 10 10 5 25 15 15 15 15 15 Final Carried 25 | 7 8 8 4 25 14 15 14 15 14 Class Distribution -------------------- 29% | Scavenger-Tank 27% | Mutant 18% | Scavenger-Mutant 10% | Scavenger-Skirmisher 7% | Hacker-Mutant 7% | Subdweller-Mutant Dominant Class ---------------- Mutant | -10/Materials Mutant | -10/Mines Subdweller-Mutant | -10/Subcaves Scavenger-Mutant | -8/Materials Scavenger-Tank | -7/Factory Scavenger-Skirmisher | -7/Lower Caves Scavenger-Tank | -7/Lower Caves Scavenger-Mutant | -7/Data Miner Scavenger-Tank | -6/Proximity Caves Resources | -11 -10 -10 -10 -8 -7 -7 -7 -7 -6 ----------- Run | Yrd Mat Min Sub Mat Fac Low Low Dat Pro Matter Collected 1927 | 338 288 62 101 583 168 20 60 255 52 Remotely . | . . . . . . . . . . Salvage Created 4844 | 192 502 85 110 1961 740 . 408 388 458 Parts 211 | 15 31 10 5 79 31 . 9 15 16 Haulers Intercepted 3 | . 1 . . 2 . . . . . Recyclers Shooed 1 | . . . . 1 . . . . . Parts Field Recycled . | . . . . . . . . . . Retrieved Matter . | . . . . . . . . . . Parts Self-Destructed 34 | . . . 1 . . . 17 . 16 Prevented . | . . . . . . . . . . Parts Restored . | . . . . . . . . . . Kills | -11 -10 -10 -10 -8 -7 -7 -7 -7 -6 ------- Run | Yrd Mat Min Sub Mat Fac Low Low Dat Pro Combat Hostiles Destroyed 80 | . 11 6 2 32 8 . 6 4 11 Melee 4 | . . . . . . . . 4 . Guns 64 | . 11 6 2 32 8 . 5 . . Cannons 10 | . . . . . . . . . 10 AOE 1 | . . . . . . . . . 1 Classes Destroyed 16 | 2 5 . 1 5 1 . 2 . . Worker 5 | . 1 . . 1 3 . . . . Builder 5 | . 2 . . 1 2 . . . . Tunneler 4 | 4 . . . . . . . . . Hauler 3 | . 1 . . 2 . . . . . Recycler 5 | 1 . . . 2 2 . . . . Operator 2 | . . . . 1 1 . . . . Watcher 3 | . . . . 1 2 . . . . Swarmer 18 | . 3 6 . 3 . . 1 . 5 Grunt 41 | . 8 . . 23 6 . . . 4 Brawler 3 | . . . . 1 . . 2 . . Duelist 1 | . . . . . . . 1 . . Sentry 7 | . . . . 4 . . 1 . 2 Hunter 2 | . . . . 1 . . 1 . . Programmer 2 | . . . . . 2 . . . . Enhanced Grunt 4 | . . . . . . . . 4 . Subdweller 2 | . . . 2 . . . . . . Samaritan 1 | . . . . . . . 1 . . Best Kill Streak 7 | 3 6 3 1 7 6 . 4 2 7 Combat Bots Only 7 | . 5 3 1 6 3 . 4 2 7 Max Kills in Single Turn 2 | 1 1 1 1 1 2 . 1 1 2 Gunslinging . | . . . . . . . . . . Exploded 1 | . . . . . . . . . 1 Melee 1 | . . . . . . . . 1 . Uniques/NPCs Destroyed 1 | . . . . . . . . 1 . Data Miner (-7/Data Miner) Combat | -11 -10 -10 -10 -8 -7 -7 -7 -7 -6 -------- Run | Yrd Mat Min Sub Mat Fac Low Low Dat Pro Hostile Shots Fired 480 | . 44 36 15 172 19 . 19 60 115 Missed 143 | . 15 6 6 59 4 . 4 14 35 Hits 337 | . 29 30 9 113 15 . 15 46 80 Melee 3 | . . . . . . . 3 . . Projectile 334 | . 29 30 9 113 15 . 12 46 80 Critical Strikes 6 | . . . . 4 1 . 1 . . Part Disruptions 2 | . . . . . . . . 2 . Damage Taken 6439 | . 389 268 190 1675 262 . 394 2136 1125 Core 1187 | . 51 40 42 335 16 . 43 415 245 Absorbed by Shields 56 | . . . . . . . . . 56 Redirected to Shielding 19 | . . . . . . . . . 19 Ignored by Resistances 169 | . . . . . . . . . 169 Core Remaining (%) 61 | 100 . . 46 39 . . . . . Volleys Fired 317 | 17 62 17 12 130 35 1 13 6 24 Largest 3 | 2 2 2 2 2 3 3 3 1 3 Hottest 260 | 40 40 40 40 122 183 183 183 5 260 Shots Fired 677 | 34 123 34 22 260 103 4 39 6 52 Gun 618 | 34 123 34 22 260 102 4 39 . . Cannon 53 | . . . . . 1 . . . 52 Launcher . | . . . . . . . . . . Special 6 | . . . . . . . . 6 . Kinetic 306 | 34 123 34 22 93 . . . . . Thermal 365 | . . . . 167 103 4 39 . 52 Explosive . | . . . . . . . . . . Electromagnetic . | . . . . . . . . . . Robot Hit Streak 18 | 6 16 4 10 18 17 3 16 1 5 Robot Miss Streak 5 | 2 4 3 2 4 3 1 3 5 5 Penetration Max . | . . . . . . . . . . Secondary Targets 9 | . 3 1 . 3 1 . 1 . . Max Gunslinging Chain 1 | . 1 1 . 1 1 . 1 . . Shots Hit Robots 479 | 22 77 15 16 194 63 3 26 37 26 Core Hits 206 | 8 29 7 7 80 29 . 12 17 17 Critical Kills 4 | . 2 . . 2 . . . . . Critical Parts Destroyed 2 | . 1 . . 1 . . . . . Critical Strikes 37 | . 3 . . 12 11 . 2 9 . Burn 22 | . . . . 9 11 . 2 . . Destroy 6 | . 3 . . 3 . . . . . Sever 9 | . . . . . . . . 9 . Melee Attacks 64 | . . . . . . . . 64 . Impact . | . . . . . . . . . . Slashing 64 | . . . . . . . . 64 . Piercing . | . . . . . . . . . . Sneak Attacks 1 | . . . . . . . . 1 . Combat Hostiles . | . . . . . . . . . . Follow-up Attacks 5 | . . . . . . . . 5 . Damage Inflicted 9100 | 248 825 144 161 3198 1143 51 482 1317 1531 Guns 6205 | 248 825 144 161 3198 1143 51 435 . . Cannons 1092 | . . . . . . . . . 1092 Explosions 415 | . . . . . . . . . 415 Melee 1317 | . . . . . . . . 1317 . Ramming 71 | . . . . . . . 47 . 24 Kinetic 2441 | 248 825 144 161 1063 . . . . . Thermal 5271 | . . . . 2135 1143 51 435 . 1507 Explosive . | . . . . . . . . . . Electromagnetic . | . . . . . . . . . . Impact . | . . . . . . . . . . Slashing 1317 | . . . . . . . . 1317 . Piercing . | . . . . . . . . . . Highest Corruption 2 | . . . . . 2 2 2 2 . Average Corruption 1 | . . . . . 1 2 2 1 . Corruption Purged 2 | . . . . . . . . 2 . Corruption Blocked . | . . . . . . . . . . Effects 19 | . . . . . 5 7 4 3 . Message Errors 4 | . . . . . . 1 1 2 . Matter Fused 2 | . . . . . 1 1 . . . Heat Flow Errors 6 | . . . . . . 2 3 1 . Energy Discharges 3 | . . . . . 1 2 . . . Data Loss (minor) 1 | . . . . . 1 . . . . Misfires 2 | . . . . . 1 1 . . . Weapon Failures 1 | . . . . . 1 . . . . Overload Shots . | . . . . . . . . . . Overflow Damage 36 | . . . . . . . 4 12 20 Projectiles 20 | . . . . . . . . . 20 Explosions . | . . . . . . . . . . Melee 16 | . . . . . . . 4 12 . Knockbacks . | . . . . . . . . . . Impact . | . . . . . . . . . . Kinetic . | . . . . . . . . . . Secondary . | . . . . . . . . . . Self-Inflicted Damage 67 | . . . . . . . 23 . 44 Shots 1 | . . . . . . . . . 1 Rammed 4 | . . . . . . . 3 . 1 Targets Rammed 4 | . . . . . . . 3 . 1 Kicked . | . . . . . . . . . . Crushed . | . . . . . . . . . . Highest Temperature 414 | . 24 . . 159 207 247 414 101 180 Average Temperature 65 | . 8 . . 40 43 100 176 65 42 Received Heat Transfer 1350 | . 159 24 24 819 81 . 45 . 198 Effects 1 | . . . . . . . 1 . . Shutdowns 1 | . . . . . . . 1 . . Siege Activations . | . . . . . . . . . . Martial Activations . | . . . . . . . . . . Shielding Activations . | . . . . . . . . . . Robots Disrupted . | . . . . . . . . . . Combat Hostiles . | . . . . . . . . . . Robots Corrupted 1 | . . . . . . . 1 . . Combat Hostiles . | . . . . . . . . . . Parts Fried 2 | . . . . . 1 . 1 . . Impact Corruptions 2 | . . . . . . . 2 . . Robots Melted 1 | . . . . . . . 1 . . Combat Hostiles 1 | . . . . . . . 1 . . Parts Melted 24 | . . . . 10 8 . 6 . . Heat Transferred 10568 | . . . . 5328 3219 111 1110 . 800 Parts Sabotaged . | . . . . . . . . . . Parts Stolen . | . . . . . . . . . . Parts Stripped . | . . . . . . . . . . Power Chain Reactions 3 | . . . . . . . . . 3 Alert | -11 -10 -10 -10 -8 -7 -7 -7 -7 -6 ------- Run | Yrd Mat Min Sub Mat Fac Low Low Dat Pro Maximum Alert Level 2 | . . . . 2 . . . . . Low Security (%) 74 | 100 100 100 . 28 100 . . . . Level 1 19 | . . . . 54 . . . . . Level 2 6 | . . . . 17 . . . . . Level 3 . | . . . . . . . . . . Level 4 . | . . . . . . . . . . Level 5 . | . . . . . . . . . . High Security . | . . . . . . . . . . Max Security . | . . . . . . . . . . Peak Influence 428 | 10 138 60 . 428 182 . . . . Initial 182 | . . . . . 182 . . . . Average 112 | 1 45 13 . 237 62 . . . . Influence Increases 2171 | 25 324 140 . 918 293 . 130 21 320 Destroy 0b10 Robot/C 1500 | . 220 120 . 640 160 . 120 20 220 Destroy 0b10 Robot/NC 135 | 25 20 . . 40 50 . . . . Destroy Leader 252 | . 32 20 . 136 44 . 10 . 10 Allied During Kill 1 | . . . . . . . . 1 . Successful Hack 19 | . 6 . . 7 6 . . . . Disable Machine 30 | . . . . 15 15 . . . . Destroy Structure 9 | . 1 . . 5 3 . . . . Partial Spotted 15 | . 15 . . . . . . . . Lose Combat Pursuer 210 | . 30 . . 75 15 . . . 90 Influence Decreases 2087 | 25 324 140 . 518 561 132 130 21 236 Entered New Map 268 | . . . . . 218 50 . . . Time Decay 1505 | 25 200 120 . 458 333 82 110 1 176 Lost Part 180 | . 10 20 . 60 10 . 20 . 60 Lost Ally 20 | . . . . . . . . 20 . Purge Threat 114 | . 114 . . . . . . . . Squads Dispatched 12 | . . . . 4 6 . 1 . 1 Investigation 1 | . . . . . 1 . . . . Extermination 3 | . . . . . 3 . . . . Reinforcement 6 | . . . . 4 2 . . . . Assault 2 | . . . . . . . 1 . 1 Garrison . | . . . . . . . . . . Intercept . | . . . . . . . . . . Searches Triggered . | . . . . . . . . . . Construction Impeded 1 | . . . . . 1 . . . . Haulers Reinforced . | . . . . . . . . . . Active Scanning Responses . | . . . . . . . . . . Cargo Convoy Interrupts . | . . . . . . . . . . Stealth | -11 -10 -10 -10 -8 -7 -7 -7 -7 -6 --------- Run | Yrd Mat Min Sub Mat Fac Low Low Dat Pro Distress Signals 3 | . 2 1 . . . . . . . Communications Jammed . | . . . . . . . . . . Distress Signals . | . . . . . . . . . . Times Spotted 128 | . 24 8 4 47 12 . 5 4 24 Peak Tracking Total 9 | . 7 3 2 7 3 . 5 2 9 Tactical Retreats 11 | . 2 . . 4 1 . . . 4 Traps | -11 -10 -10 -10 -8 -7 -7 -7 -7 -6 ------- Run | Yrd Mat Min Sub Mat Fac Low Low Dat Pro Traps Triggered 2 | . 1 . . . 1 . . . . Indirectly . | . . . . . . . . . . Trap Hack Attempts . | . . . . . . . . . . Triggered . | . . . . . . . . . . Disarmed . | . . . . . . . . . . Reprogrammed . | . . . . . . . . . . Reused . | . . . . . . . . . . Traps Extracted . | . . . . . . . . . . Installed . | . . . . . . . . . . Triggered . | . . . . . . . . . . Machines | -11 -10 -10 -10 -8 -7 -7 -7 -7 -6 ---------- Run | Yrd Mat Min Sub Mat Fac Low Low Dat Pro Machines Disabled 3 | . . . . 1 1 . . . 1 Max in Single Turn 1 | . . . . 1 1 . . . 1 Garrison Access 1 | . . . . 1 . . . . . Machines Repaired . | . . . . . . . . . . Machines Dismantled . | . . . . . . . . . . Machines Sabotaged . | . . . . . . . . . . Overloaded Fab Kills . | . . . . . . . . . . Hacking | -11 -10 -10 -10 -8 -7 -7 -7 -7 -6 --------- Run | Yrd Mat Min Sub Mat Fac Low Low Dat Pro Machines Accessed 17 | . 6 . . 5 1 1 . 4 . Terminals 9 | . 6 . . 2 1 . . . . Fabricators . | . . . . . . . . . . Repair Stations . | . . . . . . . . . . Recycling Units . | . . . . . . . . . . Scanalyzers 2 | . . . . 2 . . . . . Garrison Access 1 | . . . . 1 . . . . . Total Hacks 59 | . 16 . . 10 2 1 . 30 . Successful 52 | . 12 . . 8 1 1 . 30 . Failed 7 | . 4 . . 2 1 . . . . Catastrophic 1 | . . . . . 1 . . . . Database Lockouts . | . . . . . . . . . . Manual 17 | . 14 . . 1 2 . . . . Terminals 21 | . 16 . . 3 2 . . . . Fabricators . | . . . . . . . . . . Repair Stations . | . . . . . . . . . . Recycling Units . | . . . . . . . . . . Scanalyzers 6 | . . . . 6 . . . . . Garrison Access 1 | . . . . 1 . . . . . Terminal Hacks 39 | . 4 . . 3 1 1 . 30 . Record 11 | . . . . . . . . 11 . Part Schematic 12 | . . . . . . . . 12 . Robot Schematic 4 | . . . . . . . . 4 . Prototype ID Bank 4 | . . . . 1 . . . 3 . Open Door 1 | . . . . . . 1 . . . Branch Access Points 2 | . . . . 1 1 . . . . Terminal Index 1 | . 1 . . . . . . . . Unreport Threat 1 | . 1 . . . . . . . . Registered Components 2 | . 1 . . 1 . . . . . Zone Layout 1 | . 1 . . . . . . . . Fabricator Hacks . | . . . . . . . . . . Repair Station Hacks . | . . . . . . . . . . Recycling Unit Hacks . | . . . . . . . . . . Scanalyzer 4 | . . . . 4 . . . . . Retrieve Study 4 | . . . . 4 . . . . . Garrison Access Hacks 1 | . . . . 1 . . . . . Seal Access 1 | . . . . 1 . . . . . Unauthorized Hacks 8 | . 8 . . . . . . . . Terminals 8 | . 8 . . . . . . . . Botnet 2 | . 2 . . . . . . . . Operators 1 | . 1 . . . . . . . . Skim 5 | . 5 . . . . . . . . Fabricators . | . . . . . . . . . . Repair Stations . | . . . . . . . . . . Recycling Units . | . . . . . . . . . . Scanalyzers . | . . . . . . . . . . Garrison Access . | . . . . . . . . . . Data Cores Recovered . | . . . . . . . . . . Used . | . . . . . . . . . . Hacking Detections 8 | . 5 . . 2 1 . . . . Full Trace Events 1 | . . . . . 1 . . . . Feedback Events . | . . . . . . . . . . Feedback Blocked . | . . . . . . . . . . Robot Schematics Acquired 4 | . . . . . . . . 4 . Robots Built . | . . . . . . . . . . Authchips . | . . . . . . . . . . Time . | . . . . . . . . . . Total Robot Build Rating . | . . . . . . . . . . Part Schematics Acquired 12 | . . . . . . . . 12 . Parts Built . | . . . . . . . . . . Authchips . | . . . . . . . . . . Time . | . . . . . . . . . . Total Part Build Rating . | . . . . . . . . . . Part Studies Acquired 4 | . . . . 4 . . . . . Parts Repaired . | . . . . . . . . . . Time . | . . . . . . . . . . Parts Recycled . | . . . . . . . . . . Recycled Matter . | . . . . . . . . . . Retrieved Matter . | . . . . . . . . . . Retrieved Components . | . . . . . . . . . . Parts Scanalyzed . | . . . . . . . . . . Part Schematics Acquired . | . . . . . . . . . . Parts Damaged . | . . . . . . . . . . Bothacking | -11 -10 -10 -10 -8 -7 -7 -7 -7 -6 ------------ Run | Yrd Mat Min Sub Mat Fac Low Low Dat Pro Used RIF Installer . | . . . . . . . . . . Robots Hacked 1 | . . . . . . . . 1 . Non-combat . | . . . . . . . . . . Combat 1 | . . . . . . . . 1 . Robot Hacks Applied 1 | . . . . . . . . 1 . parse_system 1 | . . . . . . . . 1 . Relay Couplers Released . | . . . . . . . . . . Fabnet Peak Effective % . | . . . . . . . . . . Robots Rewired 1 | . . . . . . . 1 . . Allies Hacked . | . . . . . . . . . . Hacks Repelled . | . . . . . . . . . . Allies | -11 -10 -10 -10 -8 -7 -7 -7 -7 -6 -------- Run | Yrd Mat Min Sub Mat Fac Low Low Dat Pro Total Allies 1 | . . . . . . . 1 . . Largest Group 1 | . . . . . . . 1 1 . Highest-Rated Group 16 | . . . . . . . 16 16 . Highest-Rated Ally 16 | . . . . . . . 16 16 . Total Orders 1 | . . . . . . . . 1 . STAY 1 | . . . . . . . . 1 . Ally Attacks 3 | . . . . . . . . 3 . Total Damage 21 | . . . . . . . . 21 . Kills . | . . . . . . . . . . Allies Corrupted . | . . . . . . . . . . Allies Melted . | . . . . . . . . . . Intel | -11 -10 -10 -10 -8 -7 -7 -7 -7 -6 ------- Run | Yrd Mat Min Sub Mat Fac Low Low Dat Pro Active Infowar (turns) 1261 | 26 652 14 . . 4 436 129 . . Sensors 569 | . . . . . 4 436 129 . . Terrain 2 | . 2 . . . . . . . . Seismic 690 | 26 650 14 . . . . . . . Robot Analysis Total 154 | . . . . . . . . 154 . Derelict Logs Recovered 4 | . . . 1 . . 1 2 . . Drone Launches . | . . . . . . . . . . Drone Recoveries . | . . . . . . . . . . Exploration | -11 -10 -10 -10 -8 -7 -7 -7 -7 -6 ------------- Run | Yrd Mat Min Sub Mat Fac Low Low Dat Pro Turns Passed 5800 | 197 652 449 225 1332 1124 436 366 595 424 Spaces Moved 3490 | 95 264 147 177 710 798 508 301 225 265 Core 20 | 20 . . . . . . . . . Treads 487 | 75 264 147 1 . . . . . . Legs 227 | . . . . . . . . 108 119 Wheels 2756 | . . . 176 710 798 508 301 117 146 Hover . | . . . . . . . . . . Flight . | . . . . . . . . . . Fastest Speed 50 | 50 160 160 95 95 85 85 85 76 110 Average Speed 113 | 136 160 160 95 115 116 85 89 107 125 Slowest Speed 205 | 160 160 160 160 205 145 85 91 190 150 Overloaded Moves . | . . . . . . . . . . Propulsion Burnouts . | . . . . . . . . . . Robots Hopped . | . . . . . . . . . . Potential Cave-ins . | . . . . . . . . . . Cave-ins Triggered . | . . . . . . . . . . Exploration Rate (%) 41 | 6 46 28 15 62 16 75 42 80 47 Regions Visited 9 Branch Regions 6 Pre-discovered Areas 30 | . . . . . . . 1 29 . Known Exits Taken 4 | . . . 1 . 1 1 1 . . Unknown Exits Taken 5 | 1 1 1 . 1 . . . 1 . Scrap Searched 5 | . . . . . . 1 2 . 2 Spaces Dug . | . . . . . . . . . . Terrain Destroyed 24 | . . . . . . . . . 24 Melee . | . . . . . . . . . . Projectile 13 | . . . . . . . . . 13 AOE 11 | . . . . . . . . . 11 Terrain Rammed . | . . . . . . . . . . Walls Destroyed . | . . . . . . . . . . Machines Disabled . | . . . . . . . . . . Actions | -11 -10 -10 -10 -8 -7 -7 -7 -7 -6 --------- Run | Yrd Mat Min Sub Mat Fac Low Low Dat Pro Total 4676 | 132 384 330 214 991 928 509 368 519 301 Wait 512 | . 45 165 12 57 25 . 40 167 1 Move 3481 | 94 263 146 176 709 797 507 300 224 265 Hop . | . . . . . . . . . . Pick Up 113 | 14 5 1 3 44 22 1 3 17 3 Fast Attach 20 | . . . 1 7 1 . . 11 . Attach 48 | 7 2 1 5 12 6 . 2 10 3 Detach 5 | . . . . . 1 . . 4 . Swap 35 | . 3 . 1 12 8 . 4 4 3 Drop 81 | . 4 . 4 20 33 . 2 17 1 Fire 317 | 17 62 17 12 130 35 1 13 6 24 Melee 59 | . . . . . . . . 59 . Ram 4 | . . . . . . . 3 . 1 Kick . | . . . . . . . . . . Crush . | . . . . . . . . . . Escape Stasis . | . . . . . . . . . . Rewire 1 | . . . . . . . 1 . . Trap . | . . . . . . . . . . Miscellaneous . | . . . . . . . . . . Route ------- -11/Scrapyard -10/Materials (discovered 3 exits: *Mat x2 / [*Min]) -10/Mines (discovered 3 exits: *Mat x2 / [*Sub]) -10/Subcaves (discovered 3 exits: *Mat x2 / Rec) -8/Materials (discovered 2 exits: *Fac x2) -7/Factory (discovered 3 exits: *Fac / *Low x2) -7/Lower Caves -7/Lower Caves -7/Data Miner -6/Proximity Caves History --------- Turn | Location | Event 5 | -11/Scrapyard | Discovered new exit (range 16) 198 | -11/Scrapyard | Entered Materials 313 | -10/Materials | Build established: Mutant 369 | -10/Materials | Discovered new exit (range 16) 722 | -10/Materials | Learned 2 Mines zone layouts 747 | -10/Materials | Learned location of 2 exits from Subcaves 754 | -10/Materials | Discovered new exit (range 4) 762 | -10/Materials | Identified exit to Materials 767 | -10/Materials | Learned Storage stockpile data 788 | -10/Materials | Learned location of 2 exits from Mines 816 | -10/Materials | Learned Recycling recycling unit intel 850 | -10/Materials | Entered Mines 910 | -10/Mines | Met a Derelict bent on vengeance 1249 | -10/Mines | Discovered new exit (range 4) 1299 | -10/Mines | Entered Subcaves 1300 | -10/Subcaves | Identified exit to Recycling 1300 | -10/Subcaves | Identified exit to Materials 1327 | -10/Subcaves | Core integrity fell below 50% 1438 | -10/Subcaves | Learned Materials emergency access door positions 1459 | -10/Subcaves | A swath of the cavern ceiling suddenly collapsed 1510 | -10/Subcaves | Discovered exit to Materials (range 9) 1523 | -10/Subcaves | Ambushed by Subdwellers from Twisted Machinery 1524 | -10/Subcaves | Entered Materials 1524 | -8/Materials | Evolved 4 slots: Propulsion x1, Utility x3 1612 | -8/Materials | Build established: Subdweller-Mutant 2285 | -8/Materials | Build established: Scavenger-Mutant 2317 | -8/Materials | Discovered new exit (range 9) 2420 | -8/Materials | Discovered new exit (range 16) 2538 | -8/Materials | Lost 3 parts (1p1n1u) 2582 | -8/Materials | Core integrity fell below 50% 2627 | -8/Materials | Build established: Hacker-Mutant 2856 | -8/Materials | Entered Factory 2856 | -7/Factory | Evolved 2 slots: Utility x1, Weapon x1 3098 | -7/Factory | Discovered new exit (range 15) 3122 | -7/Factory | Identified exit to Factory 3161 | -7/Factory | Build established: Scavenger-Tank 3277 | -7/Factory | Discovered new exit (range 8) 3659 | -7/Factory | Identified exit to Lower Caves 3980 | -7/Factory | Entered Lower Caves 3981 | -7/Lower Caves | Encountered a Warlord checkpoint 4201 | -7/Lower Caves | Learned location of 1 exit from Factory 4237 | -7/Lower Caves | Discovered new exit (range 12) 4244 | -7/Lower Caves | Build established: Scavenger-Skirmisher 4310 | -7/Lower Caves | Identified exit to Lower Caves 4416 | -7/Lower Caves | Entered another Lower Caves area 4519 | -7/Lower Caves | Attracted the attention of an 0b10 outpost 4641 | -7/Lower Caves | Encountered a Warlord checkpoint 4652 | -7/Lower Caves | Learned location of Extension (-5) 4743 | -7/Lower Caves | Discovered new exit (range 11) 4752 | -7/Lower Caves | Learned Factory garrison access intel 4776 | -7/Lower Caves | Identified exit to Data Miner 4782 | -7/Lower Caves | Entered Data Miner 4782 | -7/Data Miner | Accompanied by 1 ally 4786 | -7/Data Miner | Discovered new exit (range 8) 4809 | -7/Data Miner | Met Data Miner 4824 | -7/Data Miner | Learned location of Section 7 (-2) 4824 | -7/Data Miner | Acquired the access code to Warlord's prototype stash 4841 | -7/Data Miner | Received God Mode back door access code from Data Miner 4946 | -7/Data Miner | Destroyed Data Miner 4949 | -7/Data Miner | Interfaced with the Data Conduit 4950 | -7/Data Miner | Found Quantum Router 4954 | -7/Data Miner | Found Deep Network Scanner 5201 | -7/Data Miner | Core integrity fell below 50% 5258 | -7/Data Miner | Lost 8 parts (1n6u1w) 5267 | -7/Data Miner | Found Exp. Thermal Shield 5377 | -7/Data Miner | Entered Proximity Caves 5539 | -6/Proximity Caves | Attracted the attention of an 0b10 checkpoint 5572 | -6/Proximity Caves | Build established: Scavenger-Tank 5608 | -6/Proximity Caves | Attracted the attention of an 0b10 outpost 5630 | -6/Proximity Caves | Core integrity fell below 20% 5671 | -6/Proximity Caves | Destroyed 7 combat bots 5792 | -6/Proximity Caves | Spotted B-75 Beast 5801 | -6/Proximity Caves | Destroyed by B-75 Beast with Magnetic Acceleration Cannon Last Messages --------------- 05713_ Acquired 10 matter. 05725_ C-45 Heavy ARC bursts open, deploying its payload. 05725_ G-67 Veteran unfolds itself. 05725_ L-41 Fighter unfolds itself. 05725_ G-50 Soldier unfolds itself. 05725_ M-28 Smith unfolds itself. 05725_ Slammed into L-41 Fighter. 05746_ Lyr. Medium Armor Plating destroyed. 05754_ Searching scrap... 05754_ Found Lightning Gun. 05754_ Found Weight Redist. System. 05754_ Found Lgt. Nuclear Core+. 05754_ Found Adv. Weight Redist. System. 05754_ Found 49 Matter. 05755_ Acquired 2 matter. 05756_ Penetrated by Slug. 05759_ Imp. Shield Generator destroyed. 05762_ Slug penetrates Wall. 05795_ Adv. Heat Sink destroyed. Map ----- +----------------------------------------------------+ | ?????????????????????????????????????????????????? | | ?????????????????????????????????????????????????? | | ?????????????????????????????????????????????????? | | ?????????????????????????????????????????????????? | | ?????????????????????????????????????????????????? | | ?????????????????????????????????????????????????? | | ?????????????????????????????????????????????????? | | #???????????????????????????????????????????????? | | ?????????????????????????????????????????????????? | | ??##?????????????????????????????????????????????? | | ?? ?????????????????????????????????????????????? | | ? #?????????????????????????????????????????????? | | ?# #?????????????????????????????????????????????? | | ?# #?????????????????????????????????????????????? | | ?# #?????????????????????????????????????????????? | | ?# #?????????????????????????????????????????????? | | ## ##????????????????????????????????????????????? | | # #????????????????????????????????????????????? | | # ##??#####????????????????????????????????????? | | #?## ###??????????????????????????????????? | | ### ######?????????????????????????????? | | ## ## ##????????????????????????????? | | ## #????????????????????????????? | | ## ##???????????????????????????? | | ## ######## #???????????????? | | # h l @% #???????????????? | | # % #???????????????? | | ######## ###???????????????? | | ##??????# ;;# ##?????????????????? | | ### ##?????? ###??????????????????? | | ##?#####????? BB ##????????????????????? | | ###??????????# BB ##?????????????????????? | | ?????????????# #?????????????????????? | | ?????????????# # ????????????????????? | | ????????????# # ???????????????????? | | ????????????# ######## ???????????????????? | | ????????????# #????????###???????????????????? | | ????????????# ???????????????????????????????? | | ?????????????? ???????????????????????????????? | | ???????????????? ???????????????????????????????? | | ?????????????????????????????????????????????????? | | ?????????????????????????????????????????????????? | | ?????????????????????????????????????????????????? | | ?????????????????????????????????????????????????? | | ?????????????????????????????????????????????????? | | ?????????????????????????????????????????????????? | | ?????????????????????????????????????????????????? | | ?????????????????????????????????????????????????? | | ?????????????????????????????????????????????????? | | ?????????????????????????????????????????????????? | +----------------------------------------------------+ Best States ------------- Heat Dissipation 72 Energy Generation 21 Energy Capacity 825 Matter Stores 300 Matter Capacity 300 Sight Range 16 Robot Scan Range 15 Terrain Scan Density 10 Armor Coverage 950 Resistance: TH 30 Utility Shielding 66 Evasion (%) 55 Recoil Reduction 2 Particle Charging 25 Offensive Hacking 20 Item Schematics ----------------- Exp. Targeting Computer | -7/Data Miner | Free Cld. Cesium-ion Thruster | -7/Data Miner | Free Lgt. Regenerative Plating | -7/Data Miner | Free Combat Drone Bay | -7/Data Miner | Free Imp. Coolant Injector | -7/Data Miner | Free Hvy. Shock Bomb Launcher | -7/Data Miner | Free Imp. Lightning Gun | -7/Data Miner | Free Gyrokinetic Inverter | -7/Data Miner | Free Antigrav System | -7/Data Miner | Free Hvy. Plasma Cannon | -7/Data Miner | Free Imp. Force Field | -7/Data Miner | Free Mni. Drone Bay | -7/Data Miner | Free Robot Schematics ------------------ A-15 Conveyor | -7/Data Miner | Free Y-54 Guardian | -7/Data Miner | Free O-24 Administrator | -7/Data Miner | Free H-66 Slayer | -7/Data Miner | Free Fabricated ------------ Nothing Repaired ---------- Nothing Studied --------- Wheel | -8/Materials | Hacked Com. Wheel | -8/Materials | Hacked Nuclear Core | -8/Materials | Hacked Lgt. Nuclear Core | -8/Materials | Hacked Alien Tech Used ----------------- None Achievements -------------- None Challenges ------------ None Game ------ Seed SixPiercelightBlasthammer Manual? 0 Play Time 00:41:08 Cumulative 643.8 hours Start 2026.01.20 @ 21:07:09 End 2026.01.20 @ 21:59:01 Sessions 1 Manual Loads 0 Difficulty Rogue Special Mode None Game No. 815 Rogue 815 Adventurer 0 Explorer 0 Win Type - Total 24 Types 11/1/3/3/2/0/2/2/0/0 Lore% 96 Gallery% 92 Achievement% 80 Wizard Run 0 Options --------- Layout 2 ASCII 0 Keyboard 0 Movement Mouse Keybinds 0 Fullscreen 2 Font 24/Tamsyn Map View 50x49 Zoom Use 0% Tactical HUD 1 Map Filters NONE Filters NONE Steam 1 RUN: 65557a13-b713-4ba4-aa4f-354c569a5414